[Event "FIDE World Rapid Chess Championship 2021"]
[White "Kovalev, Vladislav"]
[Black "Donchenko, Alexander"]
[WhiteFideId "13504398"]
[BlackFideId "24603295"]
[WhiteElo "2647"]
[BlackElo "2535"]
[Result "0-1"]
[Round "11"]
[TimeControl "900+10"]
[Date "2021.12.28"]
[WhiteClock "0:01:10"]
[BlackClock "0:01:07"]

1. e4 {[%clk 0:15:00]}  c5 {[%clk 0:15:00]} 2. Nf3 {[%clk 0:15:00]}  d6 {[%clk 0:15:00]} 3. Bb5+ {[%clk 0:15:00]}  Nd7 {[%clk 0:15:00]} 4. O-O {[%clk 0:15:00]}  a6 {[%clk 0:15:00]} 5. Bd3 {[%clk 0:15:00]}  Ngf6 {[%clk 0:15:00]} 6. Re1 {[%clk 0:15:00]}  e6 {[%clk 0:15:00]} 7. Bf1 {[%clk 0:15:00]}  b6 {[%clk 0:15:14]} 8. d4 {[%clk 0:16:41]}  cxd4 {[%clk 0:15:14]} 9. Nxd4 {[%clk 0:16:41]}  Bb7 {[%clk 0:15:14]} 10. f3 {[%clk 0:16:41]}  Be7 {[%clk 0:15:14]} 11. c4 {[%clk 0:16:41]}  O-O {[%clk 0:15:14]} 12. Nc3 {[%clk 0:16:41]}  Qc7 {[%clk 0:15:14]} 13. Qd2 {[%clk 0:16:41]}  Rac8 {[%clk 0:15:14]} 14. b3 {[%clk 0:16:41]}  b5 {[%clk 0:15:14]} 15. cxb5 {[%clk 0:16:41]}  Qxc3 {[%clk 0:15:14]} 16. Qxc3 {[%clk 0:16:41]}  Rxc3 {[%clk 0:15:14]} 17. bxa6 {[%clk 0:16:41]}  Ba8 {[%clk 0:15:14]} 18. Ba3 {[%clk 0:16:41]}  Re8 {[%clk 0:14:44]} 19. Rec1 {[%clk 0:17:29]}  Rxc1 {[%clk 0:14:44]} 20. Rxc1 {[%clk 0:17:29]}  Bd8 {[%clk 0:12:12]} 21. Nb5 {[%clk 0:16:51]}  Bb6+ {[%clk 0:10:06]} 22. Kh1 {[%clk 0:16:51]}  d5 {[%clk 0:10:06]} 23. Nd6 {[%clk 0:12:14]}  Rb8 {[%clk 0:09:51]} 24. Nc8 {[%clk 0:08:20]}  Bc5 {[%clk 0:08:25]} 25. Ne7+ {[%clk 0:03:45]}  Bxe7 {[%clk 0:06:37]} 26. Bxe7 {[%clk 0:03:45]}  dxe4 {[%clk 0:06:37]} 27. Rc7 {[%clk 0:03:45]}  Nb6 {[%clk 0:05:41]} 28. fxe4 {[%clk 0:02:29]}  Nxe4 {[%clk 0:02:27]} 29. Bb5 {[%clk 0:02:29]}  h5 {[%clk 0:02:27]} 30. a4 {[%clk 0:01:27]}  Kh7 {[%clk 0:01:19]} 31. Ba3 {[%clk 0:01:27]}  Kg6 {[%clk 0:01:19]} 32. h4 {[%clk 0:01:27]}  Nd5 {[%clk 0:00:18]} 33. Rc1 {[%clk 0:00:19]}  Ne3 {[%clk 0:00:18]} 34. a7 {[%clk 0:00:19]}  Rb7 {[%clk 0:00:18]} 35. Re1 {[%clk 0:00:19]}  Ng4 {[%clk 0:00:18]} 36. Kg1 {[%clk 0:00:19]}  Rxa7 {[%clk 0:00:18]} 37. Bd3 {[%clk 0:00:19]}  f5 {[%clk 0:00:18]} 38. Bc4 {[%clk 0:00:19]}  Bd5 {[%clk 0:00:18]} 39. Bxd5 {[%clk 0:00:19]}  exd5 {[%clk 0:00:18]} 40. Rd1 {[%clk 0:00:19]}  Ne3 {[%clk 0:00:18]} 41. Rd3 {[%clk 0:00:19]}  f4 {[%clk 0:00:18]} 42. Bc1 {[%clk 0:00:19]}  Rc7 {[%clk 0:00:18]} 43. Bxe3 {[%clk 0:00:19]}  fxe3 {[%clk 0:00:18]} 44. Rxe3 {[%clk 0:00:19]}  Kf5 {[%clk 0:00:18]} 45. a5 {[%clk 0:00:19]}  Rc1+ {[%clk 0:00:18]} 46. Kh2 {[%clk 0:00:19]}  d4 {[%clk 0:00:18]} 47. Rd3 {[%clk 0:00:19]}  Ke5 {[%clk 0:00:18]} 48. b4 {[%clk 0:00:19]}  Rb1 {[%clk 0:01:07]} 49. a6 {[%clk 0:01:10]}  Rxb4 {[%clk 0:01:07]} 50. Ra3 {[%clk 0:01:10]}  Rb8 {[%clk 0:01:07]} 51. Ra5+ {[%clk 0:01:10]}  Kf4 {[%clk 0:01:07]} 52. Rxh5 {[%clk 0:01:10]}  d3 {[%clk 0:01:07]} 53. Rd5 {[%clk 0:01:10]}  Ke3 {[%clk 0:01:07]} 0-1


[Site "http://www.Chess.com"]

[Event "FIDE World Rapid Chess Championship 2021"]
[White "Antipov, Mikhail Al."]
[Black "Gabuzyan, Hovhannes"]
[WhiteFideId "4107012"]
[BlackFideId "13303732"]
[WhiteElo "2644"]
[BlackElo "2535"]
[Result "1-0"]
[Round "11"]
[TimeControl "900+10"]
[Date "2021.12.28"]
[WhiteClock "0:06:14"]
[BlackClock "0:11:47"]

1. e4 {[%clk 0:15:00]}  c5 {[%clk 0:15:00]} 2. Nf3 {[%clk 0:15:00]}  d6 {[%clk 0:15:00]} 3. d4 {[%clk 0:15:00]}  cxd4 {[%clk 0:15:00]} 4. Nxd4 {[%clk 0:15:00]}  Nf6 {[%clk 0:15:00]} 5. Nc3 {[%clk 0:15:00]}  a6 {[%clk 0:15:00]} 6. Be3 {[%clk 0:15:00]}  e5 {[%clk 0:15:00]} 7. Nb3 {[%clk 0:15:00]}  Be6 {[%clk 0:15:00]} 8. f3 {[%clk 0:15:00]}  Be7 {[%clk 0:15:00]} 9. Qd2 {[%clk 0:15:00]}  O-O {[%clk 0:15:00]} 10. O-O-O {[%clk 0:15:00]}  Nbd7 {[%clk 0:15:00]} 11. g4 {[%clk 0:15:00]}  b5 {[%clk 0:15:00]} 12. g5 {[%clk 0:15:00]}  Nh5 {[%clk 0:15:00]} 13. a3 {[%clk 0:16:52]}  f6 {[%clk 0:16:29]} 14. h4 {[%clk 0:16:52]}  fxg5 {[%clk 0:16:29]} 15. hxg5 {[%clk 0:16:52]}  Ng3 {[%clk 0:16:29]} 16. Bh3 {[%clk 0:16:52]}  Bxb3 {[%clk 0:16:29]} 17. cxb3 {[%clk 0:16:52]}  Nxh1 {[%clk 0:15:55]} 18. Be6+ {[%clk 0:15:15]}  Kh8 {[%clk 0:15:55]} 19. Rxh1 {[%clk 0:15:15]}  Rxf3 {[%clk 0:15:55]} 20. Bg4 {[%clk 0:14:47]}  Qf8 {[%clk 0:15:19]} 21. Rxh7+ {[%clk 0:06:28]}  Kxh7 {[%clk 0:15:19]} 22. Qh2+ {[%clk 0:06:28]}  Kg8 {[%clk 0:15:19]} 23. g6 {[%clk 0:06:28]}  Rf1+ {[%clk 0:11:47]} 24. Kc2 {[%clk 0:06:14]} 1-0


[Site "http://www.Chess.com"]

[Event "FIDE World Rapid Chess Championship 2021"]
[White "Gumularz, Szymon"]
[Black "Sjugirov, Sanan"]
[WhiteFideId "1188062"]
[BlackFideId "4189302"]
[WhiteElo "2452"]
[BlackElo "2634"]
[Result "1-0"]
[Round "11"]
[TimeControl "900+10"]
[Date "2021.12.28"]
[WhiteClock "0:01:24"]
[BlackClock "0:00:13"]

1. e4 {[%clk 0:15:00]}  c5 {[%clk 0:15:00]} 2. Nf3 {[%clk 0:15:00]}  d6 {[%clk 0:15:00]} 3. Bb5+ {[%clk 0:15:00]}  Nd7 {[%clk 0:15:00]} 4. a4 {[%clk 0:15:00]}  Nf6 {[%clk 0:15:00]} 5. Nc3 {[%clk 0:15:00]}  a6 {[%clk 0:15:18]} 6. Be2 {[%clk 0:15:49]}  b6 {[%clk 0:15:18]} 7. d4 {[%clk 0:15:49]}  cxd4 {[%clk 0:15:18]} 8. Qxd4 {[%clk 0:15:49]}  Bb7 {[%clk 0:15:18]} 9. O-O {[%clk 0:15:49]}  e6 {[%clk 0:15:18]} 10. Rd1 {[%clk 0:16:24]}  Be7 {[%clk 0:12:11]} 11. e5 {[%clk 0:16:24]}  dxe5 {[%clk 0:12:11]} 12. Nxe5 {[%clk 0:16:24]}  Nxe5 {[%clk 0:12:11]} 13. Qxe5 {[%clk 0:16:24]}  Qc8 {[%clk 0:12:11]} 14. Qg3 {[%clk 0:16:38]}  O-O {[%clk 0:10:33]} 15. Bh6 {[%clk 0:13:49]}  Ne8 {[%clk 0:10:33]} 16. Bf4 {[%clk 0:13:49]}  Nf6 {[%clk 0:10:33]} 17. Bh6 {[%clk 0:13:52]}  Ne8 {[%clk 0:08:05]} 18. Rd4 {[%clk 0:11:06]}  Kh8 {[%clk 0:08:12]} 19. Rc4 {[%clk 0:11:06]}  Qb8 {[%clk 0:08:12]} 20. Bf4 {[%clk 0:11:06]}  Bd6 {[%clk 0:06:18]} 21. Rd1 {[%clk 0:10:47]}  e5 {[%clk 0:06:18]} 22. Be3 {[%clk 0:10:47]}  f5 {[%clk 0:06:18]} 23. Bxb6 {[%clk 0:10:45]}  e4 {[%clk 0:04:23]} 24. Qh3 {[%clk 0:10:45]}  Nf6 {[%clk 0:04:23]} 25. Rcd4 {[%clk 0:10:45]}  Be7 {[%clk 0:03:26]} 26. Qxf5 {[%clk 0:09:14]}  Nd5 {[%clk 0:01:53]} 27. Qd7 {[%clk 0:06:13]}  Nxc3 {[%clk 0:01:24]} 28. bxc3 {[%clk 0:06:13]}  Bf6 {[%clk 0:01:24]} 29. Rc4 {[%clk 0:04:45]}  Bc8 {[%clk 0:00:16]} 30. Qd6 {[%clk 0:04:45]}  Bf5 {[%clk 0:00:16]} 31. Qxb8 {[%clk 0:04:45]}  Raxb8 {[%clk 0:00:16]} 32. a5 {[%clk 0:04:45]}  h6 {[%clk 0:00:16]} 33. Rc5 {[%clk 0:04:45]}  Bc8 {[%clk 0:00:16]} 34. h3 {[%clk 0:04:25]}  Bb7 {[%clk 0:00:12]} 35. Rd7 {[%clk 0:04:25]}  e3 {[%clk 0:00:12]} 36. fxe3 {[%clk 0:01:24]}  Bh4 {[%clk 0:00:13]} 37. Rcc7 {[%clk 0:01:24]}  Bxg2 {[%clk 0:00:13]} 38. Rxg7 {[%clk 0:01:24]}  Be4 {[%clk 0:00:13]} 39. Rg4 {[%clk 0:01:24]}  Bf2+ {[%clk 0:00:13]} 40. Kh2 {[%clk 0:01:24]} 1-0


[Site "http://www.Chess.com"]

[Event "FIDE World Rapid Chess Championship 2021"]
[White "Vidit, Santosh Gujrathi"]
[Black "Mastrovasilis, Dimitrios"]
[WhiteFideId "5029465"]
[BlackFideId "4202694"]
[WhiteElo "2629"]
[BlackElo "2534"]
[Result "1/2-1/2"]
[Round "11"]
[TimeControl "900+10"]
[Date "2021.12.28"]
[WhiteClock "0:00:52"]
[BlackClock "0:00:16"]

1. e4 {[%clk 0:15:00]}  e5 {[%clk 0:15:00]} 2. Nf3 {[%clk 0:15:00]}  Nc6 {[%clk 0:15:00]} 3. Bc4 {[%clk 0:15:00]}  Nf6 {[%clk 0:15:00]} 4. d3 {[%clk 0:15:00]}  Be7 {[%clk 0:15:00]} 5. O-O {[%clk 0:15:00]}  O-O {[%clk 0:15:00]} 6. Re1 {[%clk 0:15:00]}  d6 {[%clk 0:15:00]} 7. a4 {[%clk 0:15:00]}  h6 {[%clk 0:15:00]} 8. h3 {[%clk 0:15:55]}  Nh7 {[%clk 0:15:00]} 9. Nc3 {[%clk 0:15:55]}  Ng5 {[%clk 0:15:00]} 10. Nd5 {[%clk 0:15:55]}  Nxf3+ {[%clk 0:14:00]} 11. Qxf3 {[%clk 0:14:54]}  Nd4 {[%clk 0:14:00]} 12. Qd1 {[%clk 0:14:54]}  Bg5 {[%clk 0:14:00]} 13. c3 {[%clk 0:14:54]}  Ne6 {[%clk 0:12:58]} 14. Bxg5 {[%clk 0:13:57]}  Qxg5 {[%clk 0:12:27]} 15. g3 {[%clk 0:13:57]}  c6 {[%clk 0:12:27]} 16. h4 {[%clk 0:13:57]}  Qd8 {[%clk 0:12:27]} 17. Ne3 {[%clk 0:13:57]}  Nc7 {[%clk 0:10:24]} 18. Qh5 {[%clk 0:11:38]}  Be6 {[%clk 0:09:38]} 19. Rad1 {[%clk 0:07:54]}  Qf6 {[%clk 0:09:01]} 20. d4 {[%clk 0:07:37]}  exd4 {[%clk 0:09:01]} 21. cxd4 {[%clk 0:07:17]}  Bxc4 {[%clk 0:04:30]} 22. Nxc4 {[%clk 0:07:17]}  Rad8 {[%clk 0:04:30]} 23. b3 {[%clk 0:06:22]}  Ne6 {[%clk 0:03:46]} 24. Qf5 {[%clk 0:06:22]}  Qe7 {[%clk 0:03:33]} 25. d5 {[%clk 0:03:48]}  Nc5 {[%clk 0:03:33]} 26. Re3 {[%clk 0:03:48]}  Rfe8 {[%clk 0:02:14]} 27. Rde1 {[%clk 0:02:23]}  Qd7 {[%clk 0:02:14]} 28. Qh5 {[%clk 0:02:23]}  Re7 {[%clk 0:00:42]} 29. dxc6 {[%clk 0:01:29]}  Qxc6 {[%clk 0:00:42]} 30. Qd5 {[%clk 0:01:29]}  Qxd5 {[%clk 0:00:42]} 31. exd5 {[%clk 0:01:29]}  Rxe3 {[%clk 0:00:42]} 32. Rxe3 {[%clk 0:01:29]}  Kf8 {[%clk 0:00:42]} 33. h5 {[%clk 0:01:29]}  Na6 {[%clk 0:00:42]} 34. Na5 {[%clk 0:00:32]}  Rd7 {[%clk 0:00:46]} 35. Re4 {[%clk 0:00:32]}  Nc5 {[%clk 0:00:46]} 36. Re3 {[%clk 0:00:32]}  Re7 {[%clk 0:00:46]} 37. Rc3 {[%clk 0:00:32]}  Re4 {[%clk 0:00:46]} 38. Nc4 {[%clk 0:00:32]}  Ke7 {[%clk 0:00:46]} 39. Kg2 {[%clk 0:00:32]}  Kd7 {[%clk 0:00:46]} 40. Rf3 {[%clk 0:00:32]}  Ke7 {[%clk 0:00:46]} 41. Rc3 {[%clk 0:00:32]}  Rd4 {[%clk 0:00:46]} 42. Re3+ {[%clk 0:00:32]}  Kd7 {[%clk 0:00:46]} 43. Rf3 {[%clk 0:00:32]}  Ke7 {[%clk 0:00:16]} 44. Re3+ {[%clk 0:00:52]}  Kd7 {[%clk 0:00:16]} 45. Rf3 {[%clk 0:00:52]} 1/2-1/2


[Site "http://www.Chess.com"]

[Event "FIDE World Rapid Chess Championship 2021"]
[White "Halkias, Stelios"]
[Black "Pichot, Alan"]
[WhiteFideId "4201809"]
[BlackFideId "110973"]
[WhiteElo "2576"]
[BlackElo "2523"]
[Result "1-0"]
[Round "11"]
[TimeControl "900+10"]
[Date "2021.12.28"]
[WhiteClock "0:01:10"]
[BlackClock "0:01:21"]

1. Nf3 {[%clk 0:15:00]}  d5 {[%clk 0:15:00]} 2. d4 {[%clk 0:15:00]}  Nf6 {[%clk 0:15:00]} 3. c4 {[%clk 0:15:00]}  dxc4 {[%clk 0:15:00]} 4. e3 {[%clk 0:15:00]}  e6 {[%clk 0:15:00]} 5. Bxc4 {[%clk 0:15:00]}  a6 {[%clk 0:15:00]} 6. O-O {[%clk 0:15:43]}  c5 {[%clk 0:15:17]} 7. e4 {[%clk 0:15:43]}  Nxe4 {[%clk 0:15:17]} 8. Qe2 {[%clk 0:15:43]}  Nf6 {[%clk 0:15:17]} 9. d5 {[%clk 0:15:43]}  Nxd5 {[%clk 0:15:17]} 10. Rd1 {[%clk 0:15:43]}  Be7 {[%clk 0:15:17]} 11. Nc3 {[%clk 0:15:43]}  Nc6 {[%clk 0:15:17]} 12. Nxd5 {[%clk 0:15:33]}  exd5 {[%clk 0:15:10]} 13. Rxd5 {[%clk 0:15:33]}  Qc7 {[%clk 0:15:18]} 14. Ng5 {[%clk 0:05:57]}  O-O {[%clk 0:14:37]} 15. Nxh7 {[%clk 0:05:45]}  Kxh7 {[%clk 0:11:13]} 16. Qd3+ {[%clk 0:03:20]}  f5 {[%clk 0:11:13]} 17. Qh3+ {[%clk 0:03:20]}  Kg6 {[%clk 0:11:13]} 18. g4 {[%clk 0:03:20]}  Kf6 {[%clk 0:04:40]} 19. Qh4+ {[%clk 0:03:08]}  Kf7 {[%clk 0:01:53]} 20. Qh5+ {[%clk 0:03:08]}  g6 {[%clk 0:01:53]} 21. Rd6+ {[%clk 0:01:10]}  Be6 {[%clk 0:01:21]} 22. Bxe6+ {[%clk 0:01:10]}  Kf6 {[%clk 0:01:21]} 23. Qg5+ {[%clk 0:01:10]}  Kg7 {[%clk 0:01:21]} 24. Qh6+ {[%clk 0:01:10]}  Kf6 {[%clk 0:01:21]} 25. Bg5+ {[%clk 0:01:10]}  Ke5 {[%clk 0:01:21]} 26. Bf4+ {[%clk 0:01:10]}  Ke4 {[%clk 0:01:21]} 27. Re1+ {[%clk 0:01:10]} 1-0


[Site "http://www.Chess.com"]

[Event "FIDE World Rapid Chess Championship 2021"]
[White "Vakhidov, Jakhongir"]
[Black "Yuffa, Daniil"]
[WhiteFideId "14201801"]
[BlackFideId "24131423"]
[WhiteElo "2566"]
[BlackElo "2514"]
[Result "1-0"]
[Round "11"]
[TimeControl "900+10"]
[Date "2021.12.28"]
[WhiteClock "0:02:40"]
[BlackClock "0:00:37"]

1. c4 {[%clk 0:15:00]}  g6 {[%clk 0:15:00]} 2. Nc3 {[%clk 0:15:00]}  Bg7 {[%clk 0:15:00]} 3. Nf3 {[%clk 0:15:23]}  Nf6 {[%clk 0:15:43]} 4. g3 {[%clk 0:15:23]}  O-O {[%clk 0:15:43]} 5. Bg2 {[%clk 0:15:23]}  d6 {[%clk 0:15:43]} 6. d4 {[%clk 0:15:23]}  Nbd7 {[%clk 0:15:43]} 7. O-O {[%clk 0:15:23]}  e5 {[%clk 0:15:43]} 8. e4 {[%clk 0:15:23]}  Re8 {[%clk 0:15:43]} 9. h3 {[%clk 0:15:23]}  exd4 {[%clk 0:15:43]} 10. Nxd4 {[%clk 0:15:23]}  Nc5 {[%clk 0:15:43]} 11. Re1 {[%clk 0:15:23]}  Bd7 {[%clk 0:15:43]} 12. Rb1 {[%clk 0:15:23]}  a5 {[%clk 0:15:43]} 13. b3 {[%clk 0:15:23]}  Qc8 {[%clk 0:15:43]} 14. Kh2 {[%clk 0:15:23]}  Re5 {[%clk 0:15:43]} 15. f3 {[%clk 0:15:23]}  Rh5 {[%clk 0:15:21]} 16. h4 {[%clk 0:15:11]}  h6 {[%clk 0:14:23]} 17. Kg1 {[%clk 0:14:40]}  Re5 {[%clk 0:12:33]} 18. Be3 {[%clk 0:13:28]}  Qd8 {[%clk 0:12:33]} 19. Qd2 {[%clk 0:13:28]}  Kh7 {[%clk 0:12:33]} 20. Nde2 {[%clk 0:11:56]}  Re8 {[%clk 0:08:41]} 21. Rbd1 {[%clk 0:11:22]}  Ne6 {[%clk 0:08:41]} 22. Qc2 {[%clk 0:11:20]}  a4 {[%clk 0:08:10]} 23. b4 {[%clk 0:07:27]}  a3 {[%clk 0:07:35]} 24. Bf2 {[%clk 0:07:27]}  b6 {[%clk 0:07:43]} 25. Nb5 {[%clk 0:05:36]}  Qc8 {[%clk 0:07:43]} 26. Rd3 {[%clk 0:05:36]}  Ra6 {[%clk 0:06:24]} 27. Red1 {[%clk 0:04:37]}  Bc6 {[%clk 0:06:24]} 28. Nec3 {[%clk 0:04:37]}  Nd7 {[%clk 0:04:01]} 29. f4 {[%clk 0:03:45]}  Nf6 {[%clk 0:04:01]} 30. e5 {[%clk 0:03:45]}  Bxg2 {[%clk 0:02:05]} 31. exf6 {[%clk 0:03:35]}  Ba8 {[%clk 0:02:05]} 32. fxg7 {[%clk 0:03:35]}  Nxg7 {[%clk 0:02:05]} 33. Nd5 {[%clk 0:03:35]}  Nh5 {[%clk 0:02:05]} 34. Nbxc7 {[%clk 0:03:35]}  Re4 {[%clk 0:02:05]} 35. Nxa8 {[%clk 0:03:48]}  Rxa8 {[%clk 0:00:27]} 36. Re3 {[%clk 0:03:48]}  Rxc4 {[%clk 0:00:27]} 37. Qb3 {[%clk 0:03:48]}  Qg4 {[%clk 0:00:27]} 38. Qxc4 {[%clk 0:03:48]}  Qxd1+ {[%clk 0:00:27]} 39. Re1 {[%clk 0:03:48]}  Qg4 {[%clk 0:00:27]} 40. Nf6+ {[%clk 0:02:40]}  Nxf6 {[%clk 0:00:37]} 41. Qxf7+ {[%clk 0:02:40]} 1-0


[Site "http://www.Chess.com"]

[Event "FIDE World Rapid Chess Championship 2021"]
[White "Murzin, Volodar"]
[Black "Socko, Bartosz"]
[WhiteFideId "44155573"]
[BlackFideId "1107038"]
[WhiteElo "2523"]
[BlackElo "2562"]
[Result "0-1"]
[Round "11"]
[TimeControl "900+10"]
[Date "2021.12.28"]
[WhiteClock "0:00:36"]
[BlackClock "0:03:50"]

1. e4 {[%clk 0:15:00]}  c6 {[%clk 0:15:00]} 2. Nf3 {[%clk 0:15:00]}  d5 {[%clk 0:15:00]} 3. d3 {[%clk 0:15:00]}  g6 {[%clk 0:15:00]} 4. e5 {[%clk 0:15:00]}  c5 {[%clk 0:15:00]} 5. c3 {[%clk 0:14:29]}  Bg4 {[%clk 0:15:54]} 6. Nbd2 {[%clk 0:14:29]}  Nc6 {[%clk 0:15:54]} 7. h3 {[%clk 0:14:29]}  Bxf3 {[%clk 0:15:54]} 8. Nxf3 {[%clk 0:14:29]}  e6 {[%clk 0:15:54]} 9. d4 {[%clk 0:14:29]}  cxd4 {[%clk 0:15:54]} 10. cxd4 {[%clk 0:14:29]}  Bb4+ {[%clk 0:15:54]} 11. Bd2 {[%clk 0:14:29]}  Qb6 {[%clk 0:15:54]} 12. a3 {[%clk 0:14:29]}  Bxd2+ {[%clk 0:15:54]} 13. Qxd2 {[%clk 0:13:37]}  Nge7 {[%clk 0:16:00]} 14. Be2 {[%clk 0:13:37]}  O-O {[%clk 0:16:01]} 15. O-O {[%clk 0:13:37]}  f6 {[%clk 0:16:01]} 16. exf6 {[%clk 0:13:37]}  Rxf6 {[%clk 0:16:01]} 17. b4 {[%clk 0:13:37]}  Raf8 {[%clk 0:15:38]} 18. Rfd1 {[%clk 0:06:21]}  Nf5 {[%clk 0:15:38]} 19. b5 {[%clk 0:04:40]}  Na5 {[%clk 0:14:47]} 20. Qb4 {[%clk 0:04:40]}  Nd6 {[%clk 0:14:47]} 21. Rac1 {[%clk 0:04:12]}  Nac4 {[%clk 0:14:28]} 22. a4 {[%clk 0:04:12]}  a6 {[%clk 0:14:28]} 23. Qc5 {[%clk 0:02:40]}  Qd8 {[%clk 0:13:12]} 24. bxa6 {[%clk 0:02:40]}  bxa6 {[%clk 0:13:12]} 25. Qb4 {[%clk 0:02:40]}  a5 {[%clk 0:13:12]} 26. Qe1 {[%clk 0:02:40]}  Kg7 {[%clk 0:12:27]} 27. Rc2 {[%clk 0:00:43]}  Qe8 {[%clk 0:12:27]} 28. Ra2 {[%clk 0:00:43]}  Rf4 {[%clk 0:12:27]} 29. Rb1 {[%clk 0:00:43]}  Qe7 {[%clk 0:10:54]} 30. Qd1 {[%clk 0:00:26]}  Ne4 {[%clk 0:10:54]} 31. Rb3 {[%clk 0:00:26]}  Ng5 {[%clk 0:10:54]} 32. Nxg5 {[%clk 0:00:26]}  Qxg5 {[%clk 0:10:54]} 33. Rb7+ {[%clk 0:00:26]}  Kg8 {[%clk 0:10:54]} 34. Bg4 {[%clk 0:00:26]}  Qf6 {[%clk 0:10:54]} 35. Re2 {[%clk 0:00:26]}  Rxf2 {[%clk 0:09:44]} 36. Bxe6+ {[%clk 0:00:26]}  Kh8 {[%clk 0:09:44]} 37. Rxf2 {[%clk 0:00:26]}  Qxf2+ {[%clk 0:09:44]} 38. Kh1 {[%clk 0:00:26]}  Ne3 {[%clk 0:09:44]} 39. Qg1 {[%clk 0:00:26]}  Qf4 {[%clk 0:09:10]} 40. Rb3 {[%clk 0:00:22]}  Nf1 {[%clk 0:09:10]} 41. Rf3 {[%clk 0:00:22]}  Ng3+ {[%clk 0:09:10]} 42. Kh2 {[%clk 0:00:22]}  Qd6 {[%clk 0:09:10]} 43. Rxf8+ {[%clk 0:00:22]}  Qxf8 {[%clk 0:09:10]} 44. Qe1 {[%clk 0:00:22]}  Ne4 {[%clk 0:03:50]} 45. Kh1 {[%clk 0:00:36]}  Qd6 {[%clk 0:03:50]} 46. Bg4 {[%clk 0:00:36]}  Qb4 {[%clk 0:03:50]} 47. Qh4 {[%clk 0:00:36]}  Kg7 {[%clk 0:03:50]} 48. Bf3 {[%clk 0:00:36]}  g5 {[%clk 0:03:50]} 0-1


[Site "http://www.Chess.com"]

[Event "FIDE World Rapid Chess Championship 2021"]
[White "Corrales Jimenez, Fidel"]
[Black "Czarnota, Pawel"]
[WhiteFideId "3506690"]
[BlackFideId "1121219"]
[WhiteElo "2561"]
[BlackElo "2511"]
[Result "0-1"]
[Round "11"]
[TimeControl "900+10"]
[Date "2021.12.28"]
[WhiteClock "0:00:36"]
[BlackClock "0:06:10"]

1. e4 {[%clk 0:15:00]}  c5 {[%clk 0:15:00]} 2. Nf3 {[%clk 0:15:00]}  d6 {[%clk 0:15:00]} 3. d4 {[%clk 0:15:00]}  cxd4 {[%clk 0:15:00]} 4. Nxd4 {[%clk 0:15:00]}  Nf6 {[%clk 0:15:00]} 5. Nc3 {[%clk 0:15:00]}  Nc6 {[%clk 0:15:00]} 6. Bg5 {[%clk 0:15:00]}  e6 {[%clk 0:15:00]} 7. Qd2 {[%clk 0:15:00]}  a6 {[%clk 0:15:00]} 8. O-O-O {[%clk 0:15:00]}  Bd7 {[%clk 0:15:00]} 9. Nxc6 {[%clk 0:15:00]}  Bxc6 {[%clk 0:15:40]} 10. Bd3 {[%clk 0:16:27]}  Be7 {[%clk 0:15:40]} 11. f3 {[%clk 0:16:27]}  h6 {[%clk 0:15:40]} 12. Be3 {[%clk 0:16:27]}  h5 {[%clk 0:15:40]} 13. h4 {[%clk 0:16:27]}  b5 {[%clk 0:15:40]} 14. Kb1 {[%clk 0:16:27]}  Qc7 {[%clk 0:15:40]} 15. Bg5 {[%clk 0:16:16]}  Rb8 {[%clk 0:14:00]} 16. Rhe1 {[%clk 0:16:16]}  b4 {[%clk 0:14:02]} 17. Ne2 {[%clk 0:14:09]}  a5 {[%clk 0:14:02]} 18. Nd4 {[%clk 0:14:09]}  Bd7 {[%clk 0:14:02]} 19. f4 {[%clk 0:14:09]}  e5 {[%clk 0:14:02]} 20. Nf5 {[%clk 0:14:09]}  Bxf5 {[%clk 0:12:43]} 21. exf5 {[%clk 0:13:17]}  O-O {[%clk 0:12:43]} 22. Qe2 {[%clk 0:13:17]}  Ng4 {[%clk 0:12:43]} 23. fxe5 {[%clk 0:13:17]}  dxe5 {[%clk 0:11:11]} 24. Rf1 {[%clk 0:12:53]}  Bf6 {[%clk 0:11:11]} 25. Be4 {[%clk 0:12:53]}  Qe7 {[%clk 0:11:11]} 26. Bc1 {[%clk 0:12:53]}  a4 {[%clk 0:11:11]} 27. Rf3 {[%clk 0:09:23]}  Rfc8 {[%clk 0:10:08]} 28. g3 {[%clk 0:09:23]}  Qc5 {[%clk 0:10:08]} 29. Rfd3 {[%clk 0:09:23]}  Rc7 {[%clk 0:10:08]} 30. Rd5 {[%clk 0:08:05]}  Qa7 {[%clk 0:09:12]} 31. R1d2 {[%clk 0:08:05]}  b3 {[%clk 0:09:18]} 32. Rb5 {[%clk 0:02:45]}  bxa2+ {[%clk 0:09:18]} 33. Kxa2 {[%clk 0:02:45]}  Rbc8 {[%clk 0:09:18]} 34. Rdd5 {[%clk 0:02:46]}  Qg1 {[%clk 0:07:30]} 35. Bd2 {[%clk 0:02:46]}  a3 {[%clk 0:07:30]} 36. Ba5 {[%clk 0:02:46]}  axb2 {[%clk 0:07:30]} 37. Kxb2 {[%clk 0:02:46]}  Rc4 {[%clk 0:06:46]} 38. Rb3 {[%clk 0:01:35]}  Ra4 {[%clk 0:06:46]} 39. Rd1 {[%clk 0:01:35]}  Qa7 {[%clk 0:06:10]} 40. Bb6 {[%clk 0:00:36]}  Ra2+ {[%clk 0:06:10]} 41. Kc1 {[%clk 0:00:36]}  Qa4 {[%clk 0:06:10]} 42. Qf3 {[%clk 0:00:36]}  Rc4 {[%clk 0:06:10]} 43. Re1 {[%clk 0:00:36]} 0-1


[Site "http://www.Chess.com"]